[Event "*** Titled Tuesday Blitz"]
[Site "Chess.com"]
[Date "2020.05.12"]
[Round "1"]
[White "TargetA"]
[Black "I_Hit_18K_on_BS"]
[Result "1-0"]
[WhiteElo "2553"]
[BlackElo "2210"]
[TimeControl "180+1"]
[EndTime "10:07:24 PDT"]
[Termination "TargetA won by checkmate"]

1. e4 {[%clk 0:01:37.1]} 1... c5 {[%clk 0:02:58.3]} 2. Nf3 {[%clk 0:01:36.5]}
2... d6 {[%clk 0:02:57.7]} 3. Nc3 {[%clk 0:01:37.4]} 3... Nf6 {[%clk 0:02:54.7]}
4. Bb5+ {[%clk 0:01:37.5]} 4... Nbd7 {[%clk 0:02:48.3]} 5. d4 {[%clk 0:01:37.1]}
5... a6 {[%clk 0:02:45.3]} 6. Bxd7+ {[%clk 0:01:36.1]} 6... Nxd7 {[%clk
0:02:43.8]} 7. O-O {[%clk 0:01:37]} 7... g6 {[%clk 0:02:43]} 8. dxc5 {[%clk
0:01:34.5]} 8... Nxc5 {[%clk 0:02:41.6]} 9. Be3 {[%clk 0:01:35.4]} 9... Ne6
{[%clk 0:02:30.6]} 10. Bd4 {[%clk 0:01:34.6]} 10... Nxd4 {[%clk 0:02:28.2]} 11.
Qxd4 {[%clk 0:01:35.5]} 11... Rg8 {[%clk 0:02:22.3]} 12. Nd5 {[%clk 0:01:35.1]}
12... Bg7 {[%clk 0:02:16]} 13. Qe3 {[%clk 0:01:35.2]} 13... Bg4 {[%clk
0:02:04.4]} 14. c4 {[%clk 0:01:27.9]} 14... e6 {[%clk 0:01:31.4]} 15. Nb6 {[%clk
0:01:26.6]} 15... Rb8 {[%clk 0:01:28.1]} 16. Rad1 {[%clk 0:01:26.9]} 16... Bxf3
{[%clk 0:01:21.9]} 17. gxf3 {[%clk 0:01:27.8]} 17... Qh4 {[%clk 0:01:05.5]} 18.
f4 {[%clk 0:01:00.4]} 18... Bh6 {[%clk 0:00:19.8]} 19. Qg3 {[%clk 0:00:58.8]}
19... Qd8 {[%clk 0:00:19.4]} 20. c5 {[%clk 0:00:57.6]} 20... Qc7 {[%clk
0:00:17.5]} 21. Rxd6 {[%clk 0:00:53.8]} 21... Qxc5 {[%clk 0:00:14.6]} 22. Rfd1
{[%clk 0:00:54.2]} 22... Bf8 {[%clk 0:00:04.8]} 23. Nd7 {[%clk 0:00:51.4]} 23...
Qxd6 {[%clk 0:00:03.2]} 24. Rxd6 {[%clk 0:00:51.5]} 24... Bxd6 {[%clk
0:00:04.1]} 25. Nxb8 {[%clk 0:00:49.4]} 25... Bxb8 {[%clk 0:00:05]} 26. e5
{[%clk 0:00:45.8]} 26... Kf8 {[%clk 0:00:03.7]} 27. Qh4 {[%clk 0:00:44.3]} 27...
Bc7 {[%clk 0:00:03.5]} 28. Qxh7 {[%clk 0:00:42.6]} 28... Rg7 {[%clk 0:00:03.9]}
29. Qh8+ {[%clk 0:00:41.1]} 29... Rg8 {[%clk 0:00:03.9]} 30. Qh4 {[%clk
0:00:39.7]} 30... Ke8 {[%clk 0:00:03.4]} 31. Qg3 {[%clk 0:00:38.3]} 31... Bd8
{[%clk 0:00:03.6]} 32. Qf3 {[%clk 0:00:38.4]} 32... g5 {[%clk 0:00:03.8]} 33. f5
{[%clk 0:00:37.7]} 33... g4 {[%clk 0:00:02.3]} 34. Qe4 {[%clk 0:00:38]} 34...
exf5 {[%clk 0:00:02.6]} 35. Qxf5 {[%clk 0:00:38.9]} 35... Kf8 {[%clk 0:00:03.1]}
36. e6 {[%clk 0:00:38.9]} 36... f6 {[%clk 0:00:01.9]} 37. Qh5 {[%clk 0:00:39]}
37... Rg7 {[%clk 0:00:01.3]} 38. Qh8+ {[%clk 0:00:39.1]} 38... Ke7 {[%clk
0:00:01.9]} 39. Qxg7+ {[%clk 0:00:39.2]} 39... Kxe6 {[%clk 0:00:02.4]} 40. Qxb7
{[%clk 0:00:39.7]} 40... Ke5 {[%clk 0:00:02.4]} 41. Qb8+ {[%clk 0:00:39.8]}
41... Kf5 {[%clk 0:00:01.9]} 42. Qxd8 {[%clk 0:00:39.9]} 42... Kg5 {[%clk
0:00:02.8]} 43. Qe7 {[%clk 0:00:39.6]} 43... Kf5 {[%clk 0:00:02.4]} 44. Kg2
{[%clk 0:00:39.2]} 44... Kg6 {[%clk 0:00:03.3]} 45. Kg3 {[%clk 0:00:39.3]} 45...
f5 {[%clk 0:00:03.8]} 46. Kf4 {[%clk 0:00:39.7]} 46... a5 {[%clk 0:00:04.3]} 47.
Ke5 {[%clk 0:00:39.9]} 47... Kh5 {[%clk 0:00:04.4]} 48. Kf6 {[%clk 0:00:39.1]}
48... Kh4 {[%clk 0:00:04.6]} 49. Qh7# {[%clk 0:00:39.1]} 1-0

[Event "*** Titled Tuesday Blitz"]
[Site "Chess.com"]
[Date "2020.05.12"]
[Round "1"]
[White "stolencandy13"]
[Black "Mazanchenko_Dmitry"]
[Result "1-0"]
[WhiteElo "2510"]
[BlackElo "2127"]
[TimeControl "180+1"]
[EndTime "10:07:24 PDT"]
[Termination "stolencandy13 won on time"]

1. e4 {[%clk 0:02:59.8]} 1... c5 {[%clk 0:02:57.4]} 2. Nf3 {[%clk 0:02:59.3]}
2... d6 {[%clk 0:02:57]} 3. d4 {[%clk 0:02:59.3]} 3... Nf6 {[%clk 0:02:56.7]} 4.
Nc3 {[%clk 0:02:55.6]} 4... cxd4 {[%clk 0:02:56]} 5. Nxd4 {[%clk 0:02:54.8]}
5... Nc6 {[%clk 0:02:55.6]} 6. Bg5 {[%clk 0:02:52.6]} 6... Qb6 {[%clk
0:02:53.6]} 7. Nb3 {[%clk 0:02:39.7]} 7... e6 {[%clk 0:02:34.6]} 8. Qd2 {[%clk
0:02:39.3]} 8... a6 {[%clk 0:02:33.8]} 9. O-O-O {[%clk 0:02:36.3]} 9... Be7
{[%clk 0:02:33]} 10. f3 {[%clk 0:02:33.4]} 10... Bd7 {[%clk 0:02:31]} 11. g4
{[%clk 0:02:30.7]} 11... h6 {[%clk 0:02:26.5]} 12. Bf4 {[%clk 0:02:20.1]} 12...
Ne5 {[%clk 0:02:09.4]} 13. Be2 {[%clk 0:02:16.1]} 13... Qc7 {[%clk 0:02:00.7]}
14. h4 {[%clk 0:02:10.8]} 14... O-O-O {[%clk 0:01:49.3]} 15. Be3 {[%clk
0:02:04.2]} 15... Bc6 {[%clk 0:01:42.2]} 16. Nd4 {[%clk 0:01:46.2]} 16... d5
{[%clk 0:01:27.7]} 17. g5 {[%clk 0:01:30.2]} 17... hxg5 {[%clk 0:01:07.8]} 18.
hxg5 {[%clk 0:01:31.1]} 18... Rxh1 {[%clk 0:01:07.8]} 19. Rxh1 {[%clk
0:01:29.7]} 19... Ne8 {[%clk 0:01:08.7]} 20. Nxc6 {[%clk 0:01:22.7]} 20... Qxc6
{[%clk 0:00:57.2]} 21. Qd4 {[%clk 0:01:22.4]} 21... Nd7 {[%clk 0:00:26.6]} 22.
exd5 {[%clk 0:01:14.3]} 22... exd5 {[%clk 0:00:24.1]} 23. Qxd5 {[%clk
0:01:10.7]} 23... Qxd5 {[%clk 0:00:14.4]} 24. Nxd5 {[%clk 0:01:10.2]} 24... Bc5
{[%clk 0:00:15.3]} 25. Bd2 {[%clk 0:01:04.4]} 25... Nb6 {[%clk 0:00:13.4]} 26.
Nxb6+ {[%clk 0:01:01.6]} 26... Bxb6 {[%clk 0:00:14.3]} 27. Rh8 {[%clk
0:00:59.4]} 27... Nd6 {[%clk 0:00:12.5]} 28. Rxd8+ {[%clk 0:00:55.3]} 28... Kxd8
{[%clk 0:00:13.4]} 29. Bd3 {[%clk 0:00:50.9]} 29... Kd7 {[%clk 0:00:12.2]} 30.
Kd1 {[%clk 0:00:42]} 30... Bd8 {[%clk 0:00:11.2]} 31. Ke2 {[%clk 0:00:38.9]}
31... b5 {[%clk 0:00:09.7]} 32. a4 {[%clk 0:00:32.9]} 32... Ke6 {[%clk
0:00:08.7]} 33. axb5 {[%clk 0:00:28]} 33... axb5 {[%clk 0:00:09.6]} 34. f4
{[%clk 0:00:25.3]} 34... Nc4 {[%clk 0:00:06.2]} 35. Bc3 {[%clk 0:00:22.1]} 35...
f6 {[%clk 0:00:04]} 36. f5+ {[%clk 0:00:18.3]} 36... Kd5 {[%clk 0:00:02.3]} 37.
b3 {[%clk 0:00:16.6]} 1-0

[Event "*** Titled Tuesday Blitz"]
[Site "Chess.com"]
[Date "2020.05.12"]
[Round "1"]
[White "Kapibara_Warri0r"]
[Black "PlotnikovPavel"]
[Result "0-1"]
[WhiteElo "2087"]
[BlackElo "2500"]
[TimeControl "180+1"]
[EndTime "10:07:28 PDT"]
[Termination "PlotnikovPavel won by checkmate"]

1. e4 {[%clk 0:03:00.9]} 1... e6 {[%clk 0:03:00.1]} 2. d4 {[%clk 0:03:00.3]}
2... d5 {[%clk 0:03:00.3]} 3. Nc3 {[%clk 0:03:00.3]} 3... Nf6 {[%clk 0:03:00.2]}
4. e5 {[%clk 0:02:41.4]} 4... Ng8 {[%clk 0:02:59.8]} 5. f4 {[%clk 0:02:37.8]}
5... c5 {[%clk 0:02:59.8]} 6. Nf3 {[%clk 0:02:37.3]} 6... Nc6 {[%clk 0:02:59.5]}
7. Be3 {[%clk 0:02:35.6]} 7... Nge7 {[%clk 0:02:59]} 8. dxc5 {[%clk 0:02:31.5]}
8... Nf5 {[%clk 0:02:59]} 9. Bf2 {[%clk 0:02:29.2]} 9... Qa5 {[%clk 0:02:58.3]}
10. Qd2 {[%clk 0:02:22.1]} 10... Bxc5 {[%clk 0:02:57.4]} 11. Bxc5 {[%clk
0:02:13]} 11... Qxc5 {[%clk 0:02:56.7]} 12. O-O-O {[%clk 0:02:11.8]} 12... a6
{[%clk 0:02:52.2]} 13. g4 {[%clk 0:01:59]} 13... Ne3 {[%clk 0:02:50.8]} 14. Qf2
{[%clk 0:01:53.3]} 14... d4 {[%clk 0:02:26.6]} 15. Ne4 {[%clk 0:01:32.3]} 15...
Nxd1 {[%clk 0:02:23.4]} 16. Qe1 {[%clk 0:01:30.7]} 16... Qd5 {[%clk 0:02:17.2]}
17. Kxd1 {[%clk 0:01:29.6]} 17... Qxa2 {[%clk 0:02:15.7]} 18. Nd6+ {[%clk
0:01:27.1]} 18... Ke7 {[%clk 0:02:15.2]} 19. Nxd4 {[%clk 0:01:04.9]} 19... Nxd4
{[%clk 0:01:46.2]} 20. Qb4 {[%clk 0:01:04.4]} 20... Qb1+ {[%clk 0:01:42.9]} 21.
Kd2 {[%clk 0:01:03.4]} 21... Qxc2+ {[%clk 0:01:41.6]} 22. Ke3 {[%clk 0:00:59.8]}
22... Nc6 {[%clk 0:01:36]} 23. Nf5+ {[%clk 0:00:55.4]} 23... Ke8 {[%clk
0:01:26.3]} 24. Nxg7+ {[%clk 0:00:50.8]} 24... Kd8 {[%clk 0:01:21.6]} 25. Qb6+
{[%clk 0:00:40.5]} 25... Kd7 {[%clk 0:01:17.6]} 26. Bg2 {[%clk 0:00:29.3]} 26...
Rg8 {[%clk 0:01:04.9]} 27. Bxc6+ {[%clk 0:00:20.4]} 27... bxc6 {[%clk
0:01:04.4]} 28. Qd4+ {[%clk 0:00:17.8]} 28... Kc7 {[%clk 0:01:01.4]} 29. Qd6+
{[%clk 0:00:17]} 29... Kb7 {[%clk 0:01:01.1]} 30. Qe7+ {[%clk 0:00:16.3]} 30...
Kb8 {[%clk 0:00:55.2]} 31. Qd6+ {[%clk 0:00:15.4]} 31... Ka7 {[%clk 0:00:55.2]}
32. Qe7+ {[%clk 0:00:14.5]} 32... Bb7 {[%clk 0:00:53.6]} 33. Qxf7 {[%clk
0:00:12.7]} 33... Rad8 {[%clk 0:00:50.1]} 34. Nxe6 {[%clk 0:00:08.7]} 34... Qd2+
{[%clk 0:00:45.9]} 35. Kf3 {[%clk 0:00:08.4]} 35... Rd3+ {[%clk 0:00:44.6]} 36.
Ke4 {[%clk 0:00:08.7]} 36... Qe2+ {[%clk 0:00:40]} 37. Kf5 {[%clk 0:00:08.8]}
37... Qxg4+ {[%clk 0:00:39.6]} 38. Ke4 {[%clk 0:00:07.5]} 38... Qf3+ {[%clk
0:00:31.4]} 39. Kf5 {[%clk 0:00:07.6]} 39... Qh3+ {[%clk 0:00:24.6]} 40. Ke4
{[%clk 0:00:07.5]} 40... c5+ {[%clk 0:00:24.1]} 41. Qxb7+ {[%clk 0:00:05.6]}
41... Kxb7 {[%clk 0:00:23.8]} 42. Nxc5+ {[%clk 0:00:05.9]} 42... Ka7 {[%clk
0:00:22.7]} 43. Nxd3 {[%clk 0:00:05.8]} 43... Qg2+ {[%clk 0:00:21.8]} 44. Kf5
{[%clk 0:00:05.5]} 44... Qg6# {[%clk 0:00:20.9]} 0-1

[Event "*** Titled Tuesday Blitz"]
[Site "Chess.com"]
[Date "2020.05.12"]
[Round "1"]
[White "Luibov_AN"]
[Black "Grandmaster2B"]
[Result "0-1"]
[WhiteElo "2099"]
[BlackElo "2502"]
[TimeControl "180+1"]
[EndTime "10:07:29 PDT"]
[Termination "Grandmaster2B won by resignation"]

1. d4 {[%clk 0:03:00.1]} 1... Nf6 {[%clk 0:02:59.3]} 2. Nf3 {[%clk 0:02:57.6]}
2... e6 {[%clk 0:02:59.1]} 3. c4 {[%clk 0:02:57.1]} 3... b6 {[%clk 0:02:57.6]}
4. Nc3 {[%clk 0:02:56.9]} 4... Bb4 {[%clk 0:02:57.4]} 5. Qc2 {[%clk 0:02:54.4]}
5... Bb7 {[%clk 0:02:55.2]} 6. g3 {[%clk 0:02:54.2]} 6... c5 {[%clk 0:02:54.5]}
7. dxc5 {[%clk 0:02:51]} 7... bxc5 {[%clk 0:02:53.1]} 8. Bg2 {[%clk 0:02:51.1]}
8... O-O {[%clk 0:02:52.1]} 9. O-O {[%clk 0:02:48.8]} 9... Qe7 {[%clk
0:02:48.1]} 10. Qb3 {[%clk 0:02:48.1]} 10... Nc6 {[%clk 0:02:31.2]} 11. Bd2
{[%clk 0:02:21.7]} 11... Rfd8 {[%clk 0:02:24.2]} 12. a3 {[%clk 0:02:18]} 12...
Ba5 {[%clk 0:02:19.9]} 13. Nb5 {[%clk 0:02:05.7]} 13... a6 {[%clk 0:02:09.6]}
14. Nc7 {[%clk 0:01:47.2]} 14... Rab8 {[%clk 0:01:18.9]} 15. Bxa5 {[%clk
0:01:43.2]} 15... Nxa5 {[%clk 0:01:19.8]} 16. Qa4 {[%clk 0:01:43.5]} 16... Nc6
{[%clk 0:01:19.7]} 17. b4 {[%clk 0:01:38.3]} 17... cxb4 {[%clk 0:01:08.3]} 18.
Nd2 {[%clk 0:01:32.9]} 18... d5 {[%clk 0:00:35.3]} 19. cxd5 {[%clk 0:01:26.1]}
19... exd5 {[%clk 0:00:35]} 20. Nxa6 {[%clk 0:01:15.4]} 20... Ra8 {[%clk
0:00:33.8]} 21. Qb5 {[%clk 0:01:04.9]} 21... Rxa6 {[%clk 0:00:24.9]} 22. Nb3
{[%clk 0:01:04.1]} 22... Na7 {[%clk 0:00:15.7]} 23. Qd3 {[%clk 0:00:56.8]} 23...
Rxa3 {[%clk 0:00:13.1]} 24. Rab1 {[%clk 0:00:56.2]} 24... Ba6 {[%clk 0:00:12.3]}
25. Qd4 {[%clk 0:00:51.9]} 25... Nb5 {[%clk 0:00:11.8]} 26. Qb6 {[%clk
0:00:49.4]} 26... Nc3 {[%clk 0:00:11.5]} 27. Rb2 {[%clk 0:00:45.5]} 27... Nxe2+
{[%clk 0:00:10.1]} 28. Kh1 {[%clk 0:00:45.1]} 28... Nc3 {[%clk 0:00:09.5]} 29.
Nc5 {[%clk 0:00:44.6]} 29... Bxf1 {[%clk 0:00:07.4]} 30. Bxf1 {[%clk 0:00:42.5]}
30... Na4 {[%clk 0:00:06.6]} 31. Nxa4 {[%clk 0:00:40.3]} 31... Rxa4 {[%clk
0:00:07.5]} 32. Bb5 {[%clk 0:00:39.3]} 32... Ra1+ {[%clk 0:00:06]} 33. Kg2
{[%clk 0:00:38.7]} 33... Qe4+ {[%clk 0:00:05.6]} 34. f3 {[%clk 0:00:35.3]} 34...
Qe7 {[%clk 0:00:06.1]} 35. Qd4 {[%clk 0:00:31.5]} 35... Raa8 {[%clk 0:00:04]}
36. Bc6 {[%clk 0:00:30.3]} 36... Qa7 {[%clk 0:00:04]} 37. Qf4 {[%clk 0:00:24.6]}
37... Rac8 {[%clk 0:00:04.1]} 38. Bb5 {[%clk 0:00:23.9]} 38... Qc7 {[%clk
0:00:04.3]} 39. Qd4 {[%clk 0:00:19.7]} 39... Qc3 {[%clk 0:00:04.3]} 40. Qxb4
{[%clk 0:00:18.7]} 40... Qxb4 {[%clk 0:00:04.1]} 41. Rxb4 {[%clk 0:00:19.3]}
41... d4 {[%clk 0:00:04.9]} 42. Rb2 {[%clk 0:00:18.3]} 42... d3 {[%clk
0:00:04.7]} 43. Bxd3 {[%clk 0:00:15.3]} 43... Rxd3 {[%clk 0:00:05.6]} 0-1

[Event "*** Titled Tuesday Blitz"]
[Site "Chess.com"]
[Date "2020.05.12"]
[Round "1"]
[White "tgpgoat"]
[Black "binbin239"]
[Result "0-1"]
[WhiteElo "2096"]
[BlackElo "2501"]
[TimeControl "180+1"]
[EndTime "10:07:30 PDT"]
[Termination "binbin239 won by resignation"]

1. e4 {[%clk 0:03:00.9]} 1... c5 {[%clk 0:02:58.4]} 2. Nf3 {[%clk 0:03:00.8]}
2... Nc6 {[%clk 0:02:58.8]} 3. d4 {[%clk 0:03:00.9]} 3... cxd4 {[%clk
0:02:59.4]} 4. Nxd4 {[%clk 0:03:01.8]} 4... g6 {[%clk 0:02:59.9]} 5. Nc3 {[%clk
0:03:01.5]} 5... Bg7 {[%clk 0:03:00.1]} 6. Be3 {[%clk 0:03:02.1]} 6... Nf6
{[%clk 0:03:00.1]} 7. Bc4 {[%clk 0:03:01.8]} 7... Qa5 {[%clk 0:03:00.1]} 8. f3
{[%clk 0:02:59.5]} 8... Qb4 {[%clk 0:02:54.5]} 9. Nxc6 {[%clk 0:01:32.8]} 9...
Qxc4 {[%clk 0:02:38]} 10. Nxa7 {[%clk 0:01:30.3]} 10... O-O {[%clk 0:02:17.5]}
11. Nxc8 {[%clk 0:01:26]} 11... Rfxc8 {[%clk 0:02:14.8]} 12. Qe2 {[%clk
0:01:25.4]} 12... Qb4 {[%clk 0:02:14.5]} 13. O-O {[%clk 0:00:52.5]} 13... Qxb2
{[%clk 0:02:12.3]} 14. Bd4 {[%clk 0:00:52.7]} 14... Qb4 {[%clk 0:01:47.3]} 15.
Qd3 {[%clk 0:00:38.8]} 15... d6 {[%clk 0:01:43.5]} 16. Rfb1 {[%clk 0:00:37.9]}
16... Qc4 {[%clk 0:01:39.7]} 17. Rb3 {[%clk 0:00:09.5]} 17... Rc7 {[%clk
0:01:29.5]} 18. a4 {[%clk 0:00:07.8]} 18... e5 {[%clk 0:01:27.3]} 19. Bb6 {[%clk
0:00:07]} 19... Qxd3 {[%clk 0:01:26.9]} 20. cxd3 {[%clk 0:00:06.1]} 20... Rc6
{[%clk 0:01:27.4]} 21. a5 {[%clk 0:00:05.6]} 21... Nd7 {[%clk 0:01:27.4]} 22.
Nd5 {[%clk 0:00:01.7]} 22... Nxb6 {[%clk 0:01:25.3]} 23. Nxb6 {[%clk 0:00:02.6]}
23... Rd8 {[%clk 0:01:23.3]} 24. Rab1 {[%clk 0:00:01.6]} 24... Bh6 {[%clk
0:01:22.2]} 25. Nc4 {[%clk 0:00:02.5]} 25... d5 {[%clk 0:01:22.1]} 26. Kf1
{[%clk 0:00:03.4]} 26... dxc4 {[%clk 0:01:22.3]} 27. dxc4 {[%clk 0:00:04.3]}
27... Rxc4 {[%clk 0:01:22.5]} 28. Rxb7 {[%clk 0:00:05.2]} 28... Ra4 {[%clk
0:01:22.9]} 29. R7b5 {[%clk 0:00:04.5]} 29... Rd2 {[%clk 0:01:22.2]} 30. Rc1
{[%clk 0:00:04.4]} 30... Rf2+ {[%clk 0:01:20.3]} 31. Kxf2 {[%clk 0:00:04.3]}
31... Bxc1 {[%clk 0:01:21]} 32. Rxe5 {[%clk 0:00:05.1]} 32... Bd2 {[%clk
0:01:21.5]} 33. Re8+ {[%clk 0:00:04.8]} 33... Kg7 {[%clk 0:01:21.7]} 34. Rc8
{[%clk 0:00:04.6]} 34... Bxa5 {[%clk 0:01:21.6]} 35. Rc2 {[%clk 0:00:05.1]}
35... Bb6+ {[%clk 0:01:21.9]} 36. Kg3 {[%clk 0:00:04.7]} 36... h5 {[%clk
0:01:21.6]} 37. h4 {[%clk 0:00:04.5]} 37... Bd4 {[%clk 0:01:22]} 38. Kh3 {[%clk
0:00:05.4]} 38... Be5 {[%clk 0:01:22.4]} 39. Rd2 {[%clk 0:00:05.3]} 39... Ra1
{[%clk 0:01:22.6]} 40. g3 {[%clk 0:00:05.3]} 40... Rg1 {[%clk 0:01:22.6]} 41. f4
{[%clk 0:00:03.3]} 41... Bc3 {[%clk 0:01:21.6]} 42. Rd3 {[%clk 0:00:02.7]} 42...
Be1 {[%clk 0:01:21.5]} 43. e5 {[%clk 0:00:02.6]} 43... Bb4 {[%clk 0:01:20.5]}
44. Rf3 {[%clk 0:00:02.6]} 44... Be7 {[%clk 0:01:20.8]} 45. Rd3 {[%clk
0:00:02.8]} 45... Re1 {[%clk 0:01:20.8]} 46. Rf3 {[%clk 0:00:03.1]} 46... Rd1
{[%clk 0:01:20.6]} 47. Kg2 {[%clk 0:00:03.6]} 47... Rd2+ {[%clk 0:01:21.1]} 48.
Kh3 {[%clk 0:00:04]} 48... Bc5 {[%clk 0:01:21.5]} 49. Rf1 {[%clk 0:00:03.6]}
49... f6 {[%clk 0:01:20.9]} 50. exf6+ {[%clk 0:00:03.6]} 50... Kxf6 {[%clk
0:01:21.2]} 51. Rc1 {[%clk 0:00:04.3]} 51... Bf2 {[%clk 0:01:20.8]} 52. Rc6+
{[%clk 0:00:04.4]} 52... Kf5 {[%clk 0:01:21.1]} 53. Rc8 {[%clk 0:00:04.4]} 53...
Rd3 {[%clk 0:01:21.3]} 54. Rf8+ {[%clk 0:00:04.4]} 54... Ke6 {[%clk 0:01:21.8]}
55. Rg8 {[%clk 0:00:04.3]} 55... Kf7 {[%clk 0:01:22.2]} 56. Rc8 {[%clk
0:00:03.2]} 56... Bxg3 {[%clk 0:01:21.3]} 57. Rc7+ {[%clk 0:00:03.5]} 57... Kf6
{[%clk 0:01:21.5]} 58. Rc6+ {[%clk 0:00:03.8]} 58... Kg7 {[%clk 0:01:22]} 59.
Rc7+ {[%clk 0:00:04]} 59... Kh6 {[%clk 0:01:22.4]} 60. Rf7 {[%clk 0:00:03.9]}
60... Bxf4+ {[%clk 0:01:22.6]} 61. Kg2 {[%clk 0:00:04.8]} 61... Be5 {[%clk
0:01:23]} 62. Re7 {[%clk 0:00:04.9]} 62... Bf6 {[%clk 0:01:23.3]} 63. Re6 {[%clk
0:00:05.1]} 63... Bxh4 {[%clk 0:01:23.6]} 0-1

[Event "*** Titled Tuesday Blitz"]
[Site "Chess.com"]
[Date "2020.05.12"]
[Round "1"]
[White "Gabrielian_Artur"]
[Black "WastefulJustice"]
[Result "1-0"]
[WhiteElo "2708"]
[BlackElo "2372"]
[TimeControl "180+1"]
[EndTime "10:07:32 PDT"]
[Termination "Gabrielian_Artur won by resignation"]

1. e4 {[%clk 0:03:00.8]} 1... e5 {[%clk 0:02:59.2]} 2. Nc3 {[%clk 0:03:00.5]}
2... Nf6 {[%clk 0:02:57.8]} 3. g3 {[%clk 0:03:00.5]} 3... Bc5 {[%clk 0:02:57]}
4. Bg2 {[%clk 0:03:00.5]} 4... Nc6 {[%clk 0:02:57.1]} 5. d3 {[%clk 0:02:59.9]}
5... O-O {[%clk 0:02:55.7]} 6. Nge2 {[%clk 0:02:59.5]} 6... d6 {[%clk
0:02:53.5]} 7. Na4 {[%clk 0:02:58.4]} 7... Bg4 {[%clk 0:02:46.1]} 8. h3 {[%clk
0:02:54.6]} 8... Bh5 {[%clk 0:02:23.5]} 9. g4 {[%clk 0:02:51.8]} 9... Bg6 {[%clk
0:02:21.8]} 10. Nxc5 {[%clk 0:02:50.2]} 10... dxc5 {[%clk 0:02:21.4]} 11. b3
{[%clk 0:02:32.6]} 11... Nd7 {[%clk 0:02:16.3]} 12. O-O {[%clk 0:02:28.4]} 12...
Nd4 {[%clk 0:02:12.2]} 13. Be3 {[%clk 0:02:06.9]} 13... Re8 {[%clk 0:02:07.6]}
14. c3 {[%clk 0:02:04.5]} 14... Nxe2+ {[%clk 0:02:06.3]} 15. Qxe2 {[%clk
0:02:04.5]} 15... b6 {[%clk 0:02:05.3]} 16. Rad1 {[%clk 0:02:03.7]} 16... Qe7
{[%clk 0:02:02.3]} 17. Qf3 {[%clk 0:01:53.8]} 17... Rad8 {[%clk 0:02:00]} 18.
Qg3 {[%clk 0:01:53.9]} 18... a5 {[%clk 0:01:54.1]} 19. f4 {[%clk 0:01:47.1]}
19... exf4 {[%clk 0:01:51.9]} 20. Bxf4 {[%clk 0:01:47.4]} 20... Ne5 {[%clk
0:01:48.7]} 21. d4 {[%clk 0:01:46.6]} 21... cxd4 {[%clk 0:01:48.1]} 22. cxd4
{[%clk 0:01:46.5]} 22... Nc6 {[%clk 0:01:46.6]} 23. d5 {[%clk 0:01:43]} 23...
Ne5 {[%clk 0:01:09.9]} 24. Rd2 {[%clk 0:01:40.7]} 24... Rd7 {[%clk 0:01:05.8]}
25. Kh2 {[%clk 0:01:37]} 25... f6 {[%clk 0:01:03.9]} 26. Rdf2 {[%clk 0:01:32.1]}
26... h6 {[%clk 0:01:00.5]} 27. h4 {[%clk 0:01:31.8]} 27... Nf7 {[%clk
0:00:45.6]} 28. g5 {[%clk 0:01:25.1]} 28... hxg5 {[%clk 0:00:44]} 29. hxg5
{[%clk 0:01:25.3]} 29... fxg5 {[%clk 0:00:43.5]} 30. Bc1 {[%clk 0:01:22.3]}
30... Bxe4 {[%clk 0:00:39.6]} 31. Rxf7 {[%clk 0:01:16]} 31... Qxf7 {[%clk
0:00:39]} 32. Rxf7 {[%clk 0:01:15.2]} 32... Rxf7 {[%clk 0:00:39]} 33. Qe3 {[%clk
0:00:53.7]} 33... Rfe7 {[%clk 0:00:34.5]} 34. Bxe4 {[%clk 0:00:47.3]} 34... Rxe4
{[%clk 0:00:34.1]} 35. Qxg5 {[%clk 0:00:47.4]} 35... Re2+ {[%clk 0:00:32.1]} 36.
Kh3 {[%clk 0:00:42.8]} 36... Rxa2 {[%clk 0:00:31.1]} 37. Bf4 {[%clk 0:00:38.9]}
37... Rae2 {[%clk 0:00:23.3]} 38. Bxc7 {[%clk 0:00:29.3]} 38... R8e3+ {[%clk
0:00:22.3]} 39. Bg3 {[%clk 0:00:28.3]} 39... Rxb3 {[%clk 0:00:20.2]} 40. Qd8+
{[%clk 0:00:25.9]} 40... Kh7 {[%clk 0:00:19.9]} 41. Qh4+ {[%clk 0:00:25.5]}
41... Kg8 {[%clk 0:00:19.8]} 42. d6 {[%clk 0:00:24.7]} 42... Ree3 {[%clk
0:00:18.3]} 43. d7 {[%clk 0:00:24.6]} 43... Rxg3+ {[%clk 0:00:12.1]} 44. Qxg3
{[%clk 0:00:24.4]} 44... a4 {[%clk 0:00:11.4]} 45. d8=Q+ {[%clk 0:00:23.8]} 1-0

[Event "*** Titled Tuesday Blitz"]
[Site "Chess.com"]
[Date "2020.05.12"]
[Round "1"]
[White "martabartel"]
[Black "m_ezat"]
[Result "0-1"]
[WhiteElo "2271"]
[BlackElo "2588"]
[TimeControl "180+1"]
[EndTime "10:07:32 PDT"]
[Termination "m_ezat won by resignation"]

1. d4 {[%clk 0:02:58.4]} 1... Nf6 {[%clk 0:02:58.1]} 2. Nf3 {[%clk 0:02:58.5]}
2... g6 {[%clk 0:02:51.3]} 3. c4 {[%clk 0:02:57.7]} 3... Bg7 {[%clk 0:02:50.6]}
4. Nc3 {[%clk 0:02:57.4]} 4... d6 {[%clk 0:02:48.2]} 5. Bg5 {[%clk 0:02:56.3]}
5... h6 {[%clk 0:02:44.4]} 6. Bh4 {[%clk 0:02:55.8]} 6... g5 {[%clk 0:02:43.6]}
7. Bg3 {[%clk 0:02:55.9]} 7... O-O {[%clk 0:02:42.7]} 8. e3 {[%clk 0:02:55.8]}
8... Nh5 {[%clk 0:02:41.2]} 9. Be2 {[%clk 0:02:55]} 9... e6 {[%clk 0:02:40.7]}
10. Nd2 {[%clk 0:02:53.2]} 10... Nxg3 {[%clk 0:02:39.9]} 11. hxg3 {[%clk
0:02:53.3]} 11... c5 {[%clk 0:02:38.7]} 12. d5 {[%clk 0:02:49.5]} 12... Qa5
{[%clk 0:02:27.5]} 13. Qc2 {[%clk 0:02:48.9]} 13... a6 {[%clk 0:02:18.9]} 14.
Kf1 {[%clk 0:02:36.6]} 14... exd5 {[%clk 0:02:06.5]} 15. Nxd5 {[%clk 0:02:32.4]}
15... Nc6 {[%clk 0:02:03.7]} 16. Ne4 {[%clk 0:02:26.7]} 16... Qd8 {[%clk
0:01:54.6]} 17. Rd1 {[%clk 0:02:24.8]} 17... f5 {[%clk 0:01:46]} 18. Nec3 {[%clk
0:02:12]} 18... Be6 {[%clk 0:01:42.8]} 19. a3 {[%clk 0:01:50.1]} 19... Rb8
{[%clk 0:01:37.4]} 20. Qd3 {[%clk 0:01:49.9]} 20... Ne5 {[%clk 0:01:34.5]} 21.
Qc2 {[%clk 0:01:48.6]} 21... Bf7 {[%clk 0:01:09.1]} 22. b3 {[%clk 0:01:40.4]}
22... Bg6 {[%clk 0:01:06]} 23. Qd2 {[%clk 0:01:27.9]} 23... Rf7 {[%clk
0:00:56.6]} 24. f4 {[%clk 0:01:27]} 24... Nc6 {[%clk 0:00:55.5]} 25. Bh5 {[%clk
0:01:23.3]} 25... Bxh5 {[%clk 0:00:53.8]} 26. Rxh5 {[%clk 0:01:23.1]} 26... b5
{[%clk 0:00:49.4]} 27. Qd3 {[%clk 0:01:02.2]} 27... b4 {[%clk 0:00:32.3]} 28.
axb4 {[%clk 0:00:56.8]} 28... cxb4 {[%clk 0:00:31.4]} 29. Ne2 {[%clk 0:00:53.8]}
29... Qe8 {[%clk 0:00:30.2]} 30. Rh1 {[%clk 0:00:44.2]} 30... a5 {[%clk
0:00:28.7]} 31. Kf2 {[%clk 0:00:36.7]} 31... a4 {[%clk 0:00:27.8]} 32. bxa4
{[%clk 0:00:30]} 32... b3 {[%clk 0:00:28]} 33. Nd4 {[%clk 0:00:20.7]} 33... Nxd4
{[%clk 0:00:22.9]} 34. exd4 {[%clk 0:00:20.7]} 34... Qxa4 {[%clk 0:00:19.8]} 35.
Rb1 {[%clk 0:00:19.7]} 35... b2 {[%clk 0:00:19.1]} 36. fxg5 {[%clk 0:00:17]}
36... hxg5 {[%clk 0:00:18.5]} 37. Qe2 {[%clk 0:00:13.5]} 37... Bxd4+ {[%clk
0:00:17.5]} 38. Kf1 {[%clk 0:00:11.6]} 38... Qa2 {[%clk 0:00:15.7]} 39. Qd1
{[%clk 0:00:07.5]} 39... Qxc4+ {[%clk 0:00:15]} 40. Qe2 {[%clk 0:00:05.7]} 40...
Qxd5 {[%clk 0:00:14.6]} 0-1